Cogmind - Beta 13 @@@ ROGUE MODE // 2024.04.06 @ 01:25:30 Player: MasterLemons Result: Destroyed by G-47 Trooper with Particle Gun Performance ------------- Evolutions (2) 1000 Regions Visited (7) 1400 Robots Destroyed (33) 165 Value Destroyed (1290) 1290 Prototype IDs (5) 100 Alien Tech Used (0) 0 Bonus (0) 0 TOTAL SCORE: 3955 Bonus ------- None Cogmind --------- Core Integrity 0/550 Matter 280/300 Energy 100/100 System Corruption 0% Temperature Cool (18) Movement Core (1350) Ox26 Location -8/Materials Parts ------- > --- POWER (1) -------- (None) > --- PROPULSION (4) --- (None) > --- UTILITY (4) ------ Huge Storage Unit > --- WEAPON (2) ------- (None) > --- INVENTORY (25) --- Improved Ion Engine Nuclear Core Light Nuclear Core Light Nuclear Core Light Angular Momentum Engine Carbon-fiber Leg Improved Heat Sink Improved Heat Sink Advanced Heat Sink Large Matter Pod (150) Makeshift Cloaking Device Light Armor Plating Hardened Medium Armor Plating Hacking Suite Tractor Beam EM Pulse Gun Shock Rifle Small Laser Beam Rifle Autogun Autogun Makeshift Spear Peak State ------------ > --- POWER ------------ Nuclear Core > --- PROPULSION ------- VSS Leg VSS Leg VSS Leg Makeshift Leg > --- UTILITY ---------- Huge Storage Unit Structural Scanner Makeshift Terrain Scanner Light Armor Plating > --- WEAPON ----------- Heavy Laser Makeshift Laser > --- INVENTORY -------- Improved Ion Engine Nuclear Core Light Nuclear Core Light Nuclear Core Light Angular Momentum Engine Carbon-fiber Leg Improved Heat Sink Improved Heat Sink Advanced Heat Sink Large Matter Pod Makeshift Cloaking Device Light Armor Plating Hardened Medium Armor Plating Hacking Suite Tractor Beam EM Pulse Gun Shock Rifle Small Laser Beam Rifle Autogun Autogun High-powered Shotgun Makeshift Spear [Rating: 40] Favorites ----------- Power Light Ion Engine Engine Light Ion Engine Power Core Light Nuclear Core Propulsion Light Treads Treads Light Treads Leg Aluminum Leg Utility Huge Storage Unit Device Structural Scanner Storage Huge Storage Unit Processor Targeting Computer Protection Weapon Shielding Weapon Particle Cannon Energy Gun Heavy Laser Energy Cannon Particle Cannon Ballistic Gun Autogun Build | -11 -10 -10 -9 -9 -9 -8 -8 ------- Run | Yrd Mat Min Mat Min Exi Min Mat Slots Evolved 4 | . . . 2 . . . 2 Power . | . . . . . . . . Propulsion 2 | . . . 2 . . . . Utility 2 | . . . . . . . 2 Weapon . | . . . . . . . . Parts Attached 53 | 6 4 8 16 1 4 1 13 Power 6 | 1 . 1 2 . . 1 1 Engine 4 | 1 . 1 1 . . 1 . Core 2 | . . . 1 . . . 1 Reactor . | . . . . . . . . Propulsion 20 | 2 2 3 9 . . . 4 Treads 7 | . 2 1 4 . . . . Leg 13 | 2 . 2 5 . . . 4 Wheel . | . . . . . . . . Hover . | . . . . . . . . Flight . | . . . . . . . . Utility 12 | 1 2 2 1 1 . . 5 Device 7 | . . 1 1 1 . . 4 Storage 2 | 1 1 . . . . . . Processor 1 | . 1 . . . . . . Hackware . | . . . . . . . . Protection 2 | . . 1 . . . . 1 Artifact . | . . . . . . . . Weapon 15 | 2 . 2 4 . 4 . 3 Energy Gun 2 | . . . . . . . 2 Energy Cannon 6 | . . 2 2 . 2 . . Ballistic Gun 7 | 2 . . 2 . 2 . 1 Ballistic Cannon . | . . . . . . . . Launcher . | . . . . . . . . Special Weapon . | . . . . . . . . Impact Weapon . | . . . . . . . . Slashing Weapon . | . . . . . . . . Piercing Weapon . | . . . . . . . . Special Melee Weapon . | . . . . . . . . Unidentified Prototypes . | . . . . . . . . Parts Lost 23 | . 3 3 4 . . . 13 Power 4 | . . 1 2 . . . 1 Propulsion 7 | . 1 1 1 . . . 4 Utility 5 | . 1 1 . . . . 3 Weapon 7 | . 1 . 1 . . . 5 Highest Loss Streak 9 | . 3 3 2 . . . 9 To Critical Strikes . | . . . . . . . . Average Slot Usage (%) 98 | . 98 97 95 100 100 100 87 Engine 12 | . 14 13 9 11 11 11 4 Treads 26 | . 26 9 16 44 44 44 19 Leg 9 | . 1 18 25 . . . 10 Device 6 | . . 4 5 11 11 11 16 Storage 12 | . 14 14 11 11 11 11 9 Processor 1 | . 13 . . . . . . Protection 3 | . . 7 5 . . . 7 Energy Cannon 12 | . . 28 15 . 8 . . Ballistic Gun 11 | . 27 . 5 22 13 22 7 Naked Turns . | . . . . . . . . Heaviest Build 98 | 11 86 92 95 93 94 92 98 Greatest Support 80 | 20 40 40 80 80 80 80 80 Greatest Overweight (x) 27 | 2 4 4 9 1 1 1 27 Average Overweight (x) 1 | . 1 3 1 1 1 1 1 Largest Inventory Capacity 25 | 8 25 25 25 25 25 25 25 Average Capacity 24 | 7 24 25 25 25 25 25 25 Most Carried 25 | 7 21 22 23 20 25 25 25 Average Carried 19 | 3 10 19 19 19 22 24 22 Final Capacity 25 | 8 25 25 25 25 25 25 25 Final Carried 25 | 4 21 21 17 20 24 25 22 Class Distribution -------------------- 51% | Mutant 48% | Scavenger-Mutant Dominant Class ---------------- Mutant | -10/Materials Mutant | -10/Mines Scavenger-Mutant | -9/Materials Scavenger-Mutant | -9/Mines Scavenger-Mutant | -9/Exiles Scavenger-Mutant | -8/Mines Scavenger-Mutant | -8/Materials Resources | -11 -10 -10 -9 -9 -9 -8 -8 ----------- Run | Yrd Mat Min Mat Min Exi Min Mat Matter Collected 1187 | 205 179 101 153 40 122 238 149 Remotely . | . . . . . . . . Salvage Created 1775 | . 324 415 477 80 18 213 248 Parts 92 | . 14 13 31 3 . 11 20 Haulers Intercepted . | . . . . . . . . Recyclers Shooed 3 | . 1 1 . . . 1 . Parts Field Recycled . | . . . . . . . . Retrieved Matter . | . . . . . . . . Parts Self-Destructed . | . . . . . . . . Prevented . | . . . . . . . . Kills | -11 -10 -10 -9 -9 -9 -8 -8 ------- Run | Yrd Mat Min Mat Min Exi Min Mat Combat Hostiles Destroyed 38 | . 5 13 10 2 . 3 5 Guns 16 | . 5 . 1 2 . 3 5 Cannons 22 | . . 13 9 . . . . Classes Destroyed 7 | . 2 2 2 . . . 1 Worker 1 | . . 1 . . . . . Recycler 3 | . 1 1 . . . 1 . Grunt 20 | . 5 4 4 2 . 3 2 Duelist 1 | . . . 1 . . . . Sentry 5 | . . . 5 . . . . Specialist 3 | . . . . . . . 3 Assembled 9 | . . 9 . . . . . Best Kill Streak 4 | . 2 4 3 2 . 3 2 Combat Bots Only 4 | . 2 4 3 2 . 1 2 Max Kills in Single Turn 2 | . 1 2 2 1 . 1 1 Gunslinging . | . . . . . . . . Exploded . | . . . . . . . . Melee . | . . . . . . . . Uniques/NPCs Destroyed . | . . . . . . . . Combat | -11 -10 -10 -9 -9 -9 -8 -8 -------- Run | Yrd Mat Min Mat Min Exi Min Mat Hostile Shots Fired 349 | . 49 63 53 5 . 29 150 Missed 90 | . 13 16 14 1 . 5 41 Damage Taken 3931 | . 609 583 479 61 . 394 1805 Core 919 | . 130 76 92 . . 64 557 Absorbed by Shields . | . . . . . . . . Redirected to Shielding 30 | . . 14 16 . . . . Core Remaining (%) 59 | 100 . 17 . . . 61 . Volleys Fired 132 | . 30 30 20 5 11 17 19 Largest 2 | . 2 2 2 2 2 2 2 Hottest 136 | . 40 136 136 46 136 46 119 Shots Fired 255 | . 60 60 37 10 22 34 32 Gun 156 | . 60 . 2 10 18 34 32 Cannon 99 | . . 60 35 . 4 . . Launcher . | . . . . . . . . Special . | . . . . . . . . Kinetic 141 | . 60 . 2 10 18 34 17 Thermal 114 | . . 60 35 . 4 . 15 Explosive . | . . . . . . . . Electromagnetic . | . . . . . . . . Robot Hit Streak 17 | . 7 7 12 17 4 6 5 Robot Miss Streak 6 | . 3 3 2 1 2 2 6 Penetration Max . | . . . . . . . . Secondary Targets 1 | . . . . . . 1 . Max Gunslinging Chain 1 | . . . . . . 1 . Shots Hit Robots 156 | . 41 34 28 8 5 23 17 Core Hits 73 | . 18 17 12 3 2 10 11 Critical Kills 2 | . 1 . . . . 1 . Critical Parts Destroyed . | . . . . . . . . Critical Strikes 2 | . 1 . . . . 1 . Destroy 2 | . 1 . . . . 1 . Melee Attacks . | . . . . . . . . Impact . | . . . . . . . . Slashing . | . . . . . . . . Piercing . | . . . . . . . . Sneak Attacks . | . . . . . . . . Combat Hostiles . | . . . . . . . . Follow-up Attacks . | . . . . . . . . Damage Inflicted 2756 | . 412 810 586 120 71 399 358 Guns 1392 | . 412 . 32 120 71 399 358 Cannons 1356 | . . 802 554 . . . . Explosions . | . . . . . . . . Melee . | . . . . . . . . Ramming 8 | . . 8 . . . . . Kinetic 1245 | . 412 . 32 120 71 399 211 Thermal 1503 | . . 802 554 . . . 147 Explosive . | . . . . . . . . Electromagnetic . | . . . . . . . . Impact . | . . . . . . . . Slashing . | . . . . . . . . Piercing . | . . . . . . . . Highest Corruption . | . . . . . . . . Average Corruption . | . . . . . . . . Corruption Purged . | . . . . . . . . Corruption Blocked . | . . . . . . . . Overload Shots . | . . . . . . . . Overflow Damage 4 | . . 2 2 . . . . Projectiles 4 | . . 2 2 . . . . Explosions . | . . . . . . . . Melee . | . . . . . . . . Knockbacks . | . . . . . . . . Impact . | . . . . . . . . Kinetic . | . . . . . . . . Secondary . | . . . . . . . . Self-Inflicted Damage . | . . . . . . . . Shots . | . . . . . . . . Rammed . | . . . . . . . . Targets Rammed 1 | . . 1 . . . . . Kicked 1 | . . 1 . . . . . Crushed . | . . . . . . . . Highest Temperature 397 | . 18 352 397 . 132 31 162 Average Temperature 97 | . 9 120 131 . 68 15 62 Received Heat Transfer 1568 | . 303 245 204 33 . 216 567 Siege Activations . | . . . . . . . . Robots Corrupted . | . . . . . . . . Combat Hostiles . | . . . . . . . . Parts Fried . | . . . . . . . . Impact Corruptions . | . . . . . . . . Robots Melted . | . . . . . . . . Combat Hostiles . | . . . . . . . . Parts Melted 4 | . . 1 3 . . . . Heat Transferred 2738 | . . 1443 999 . . . 296 Parts Sabotaged . | . . . . . . . . Parts Stolen . | . . . . . . . . Parts Stripped . | . . . . . . . . Power Chain Reactions . | . . . . . . . . Alert | -11 -10 -10 -9 -9 -9 -8 -8 ------- Run | Yrd Mat Min Mat Min Exi Min Mat Peak Influence 220 | . 64 70 220 122 . 55 65 Initial 72 | . . . . 72 . . 4 Average 33 | . 17 15 107 116 . 26 36 Maximum Alert Level 1 | . . . 1 . . . . Low Security (%) 99 | 100 100 100 92 100 . 100 100 Level 1 . | . . . 7 . . . . Level 2 . | . . . . . . . . Level 3 . | . . . . . . . . Level 4 . | . . . . . . . . Level 5 . | . . . . . . . . High Security . | . . . . . . . . Max Security . | . . . . . . . . Squads Dispatched 5 | . . . 2 . . . 3 Investigation . | . . . . . . . . Extermination . | . . . . . . . . Reinforcement 5 | . . . 2 . . . 3 Assault . | . . . . . . . . Garrison . | . . . . . . . . Intercept . | . . . . . . . . Searches Triggered . | . . . . . . . . Construction Impeded . | . . . . . . . . Haulers Reinforced . | . . . . . . . . Active Scanning Responses . | . . . . . . . . Cargo Convoy Interrupts . | . . . . . . . . Stealth | -11 -10 -10 -9 -9 -9 -8 -8 --------- Run | Yrd Mat Min Mat Min Exi Min Mat Distress Signals 5 | . 2 . 2 . . . 1 Communications Jammed . | . . . . . . . . Distress Signals . | . . . . . . . . Times Spotted 62 | . 12 13 19 2 . 4 12 Peak Tracking Total 8 | . 5 5 5 2 . 3 8 Tactical Retreats 4 | . . 1 1 . . 1 1 Traps | -11 -10 -10 -9 -9 -9 -8 -8 ------- Run | Yrd Mat Min Mat Min Exi Min Mat Traps Triggered 2 | . . . 2 . . . . Indirectly . | . . . . . . . . Trap Hack Attempts . | . . . . . . . . Triggered . | . . . . . . . . Disarmed . | . . . . . . . . Reprogrammed 6 | . 6 . . . . . . Reused 1 | . 1 . . . . . . Traps Extracted . | . . . . . . . . Installed . | . . . . . . . . Triggered 1 | . 1 . . . . . . Machines | -11 -10 -10 -9 -9 -9 -8 -8 ---------- Run | Yrd Mat Min Mat Min Exi Min Mat Machines Disabled 1 | . . 1 . . . . . Max in Single Turn 1 | . . 1 . . . . . Machines Repaired . | . . . . . . . . Machines Dismantled . | . . . . . . . . Machines Sabotaged . | . . . . . . . . Overloaded Fab Kills . | . . . . . . . . Hacking | -11 -10 -10 -9 -9 -9 -8 -8 --------- Run | Yrd Mat Min Mat Min Exi Min Mat Machines Accessed 13 | . 6 1 2 . 1 1 2 Terminals 10 | . 4 1 2 . . 1 2 Fabricators . | . . . . . . . . Repair Stations . | . . . . . . . . Recycling Units 2 | . 2 . . . . . . Scanalyzers . | . . . . . . . . Garrison Access . | . . . . . . . . Total Hacks 47 | . 14 7 7 . 6 8 5 Successful 32 | . 9 4 6 . 6 4 3 Failed 14 | . 5 3 . . . 4 2 Catastrophic 2 | . . . . . . 1 1 Database Lockouts 1 | . . . 1 . . . . Manual 1 | . . . . . 1 . . Terminals 36 | . 9 7 7 . . 8 5 Fabricators . | . . . . . . . . Repair Stations . | . . . . . . . . Recycling Units 5 | . 5 . . . . . . Scanalyzers . | . . . . . . . . Garrison Access . | . . . . . . . . Terminal Hacks 31 | . 8 4 6 . 6 4 3 Record 18 | . 1 3 4 . 6 3 1 Robot Analysis 1 | . . . . . . . 1 Prototype ID Bank 3 | . 2 . 1 . . . . Emergency Access Points 1 | . 1 . . . . . . Reprogram Traps 3 | . 3 . . . . . . Dispatch Records 1 | . . 1 . . . . . Maintenance Status 1 | . 1 . . . . . . Zone Layout 3 | . . . 1 . . 1 1 Fabricator Hacks . | . . . . . . . . Repair Station Hacks . | . . . . . . . . Recycling Unit Hacks 1 | . 1 . . . . . . Retrieve Components 1 | . 1 . . . . . . Scanalyzer . | . . . . . . . . Garrison Access Hacks . | . . . . . . . . Unauthorized Hacks . | . . . . . . . . Terminals . | . . . . . . . . Fabricators . | . . . . . . . . Repair Stations . | . . . . . . . . Recycling Units . | . . . . . . . . Scanalyzers . | . . . . . . . . Garrison Access . | . . . . . . . . Data Cores Recovered . | . . . . . . . . Used . | . . . . . . . . Hacking Detections 7 | . 3 1 2 . . 1 . Full Trace Events 1 | . . . 1 . . . . Feedback Events . | . . . . . . . . Feedback Blocked . | . . . . . . . . Robot Schematics Acquired . | . . . . . . . . Robots Built . | . . . . . . . . Authchips . | . . . . . . . . Time . | . . . . . . . . Total Robot Build Rating . | . . . . . . . . Part Schematics Acquired . | . . . . . . . . Parts Built . | . . . . . . . . Authchips . | . . . . . . . . Time . | . . . . . . . . Total Part Build Rating . | . . . . . . . . Parts Repaired . | . . . . . . . . Time . | . . . . . . . . Parts Recycled . | . . . . . . . . Recycled Matter . | . . . . . . . . Retrieved Matter . | . . . . . . . . Retrieved Components 1 | . 1 . . . . . . Parts Scanalyzed . | . . . . . . . . Part Schematics Acquired . | . . . . . . . . Parts Damaged . | . . . . . . . . Bothacking | -11 -10 -10 -9 -9 -9 -8 -8 ------------ Run | Yrd Mat Min Mat Min Exi Min Mat Used RIF Installer . | . . . . . . . . Robots Hacked . | . . . . . . . . Non-combat . | . . . . . . . . Combat . | . . . . . . . . Robot Hacks Applied . | . . . . . . . . Relay Couplers Released . | . . . . . . . . Fabnet Peak Effective % . | . . . . . . . . Robots Rewired . | . . . . . . . . Allies Hacked . | . . . . . . . . Hacks Repelled . | . . . . . . . . Allies | -11 -10 -10 -9 -9 -9 -8 -8 -------- Run | Yrd Mat Min Mat Min Exi Min Mat Total Allies 5 | . . 3 . 2 . . . Largest Group 3 | . . 3 . 2 2 . . Highest-Rated Group 48 | . . 40 . 48 48 . . Highest-Rated Ally 31 | . . 16 . 31 31 . . Total Orders 3 | . . 3 . . . . . ROAM 3 | . . 3 . . . . . Ally Attacks 8 | . . 8 . . . . . Total Damage 91 | . . 91 . . . . . Kills 3 | . . 3 . . . . . Allies Corrupted . | . . . . . . . . Allies Melted . | . . . . . . . . Intel | -11 -10 -10 -9 -9 -9 -8 -8 ------- Run | Yrd Mat Min Mat Min Exi Min Mat Robot Analysis Total 1 | . . . . . . . 1 Derelict Logs Recovered 2 | . . 2 . . . . . Drone Launches . | . . . . . . . . Drone Recoveries . | . . . . . . . . Exploration | -11 -10 -10 -9 -9 -9 -8 -8 ------------- Run | Yrd Mat Min Mat Min Exi Min Mat Turns Passed 8686 | 56 1218 2970 766 301 1583 1497 295 Spaces Moved 2810 | 33 344 763 238 119 641 591 81 Core 15 | 13 . . . . . . 2 Treads 2110 | . 311 299 105 119 641 591 44 Legs 685 | 20 33 464 133 . . . 35 Wheels . | . . . . . . . . Hover . | . . . . . . . . Flight . | . . . . . . . . Fastest Speed 50 | 50 120 320 240 240 240 240 187 Average Speed 284 | 122 304 370 258 240 240 240 257 Slowest Speed 1400 | 150 480 480 750 240 240 240 1400 Overloaded Moves . | . . . . . . . . Propulsion Burnouts . | . . . . . . . . Robots Hopped . | . . . . . . . . Cave-ins Triggered . | . . . . . . . . Exploration Rate (%) 51 | 3 66 93 22 25 92 97 10 Regions Visited 7 Branch Regions 4 Pre-discovered Areas 3 | . . 3 . . . . . Known Exits Taken . | . . . . . . . . Unknown Exits Taken 7 | 1 1 1 1 1 1 1 . Scrap Searched 3 | . . 1 . 1 . 1 . Spaces Dug . | . . . . . . . . Terrain Destroyed . | . . . . . . . . Melee . | . . . . . . . . Projectile . | . . . . . . . . AOE . | . . . . . . . . Terrain Rammed . | . . . . . . . . Walls Destroyed . | . . . . . . . . Machines Disabled . | . . . . . . . . Actions | -11 -10 -10 -9 -9 -9 -8 -8 --------- Run | Yrd Mat Min Mat Min Exi Min Mat Total 3300 | 48 464 846 359 127 668 645 143 Wait 191 | . 67 31 53 . . 29 11 Move 2803 | 32 343 762 237 118 640 590 81 Hop . | . . . . . . . . Pick Up 80 | 10 19 10 19 3 6 4 9 Fast Attach . | . . . . . . . . Attach 37 | 6 1 6 15 . 2 . 7 Detach 2 | . . . . . . . 2 Swap 16 | . 3 2 1 1 2 1 6 Drop 33 | . 1 4 14 . 2 4 8 Fire 132 | . 30 30 20 5 11 17 19 Melee . | . . . . . . . . Ram . | . . . . . . . . Kick 1 | . . 1 . . . . . Crush . | . . . . . . . . Escape Stasis . | . . . . . . . . Rewire 5 | . . . . . 5 . . Trap . | . . . . . . . . Miscellaneous . | . . . . . . . . Route ------- -11/Scrapyard -10/Materials (discovered 3 exits: *Mat x2 / *Min) -10/Mines -9/Materials (discovered 2 exits: *Mat / [*Min]) -9/Mines -9/Exiles (discovered 2 exits: *Min x2) -8/Mines (discovered 2 exits: *Mat x2) -8/Materials History --------- Turn | Location | Event 17 | -11/Scrapyard | Discovered new exit (range 14) 57 | -11/Scrapyard | Entered Materials 315 | -10/Materials | Build established: Mutant 406 | -10/Materials | Discovered new exit (range 7) 708 | -10/Materials | Discovered new exit (range 9) 1214 | -10/Materials | Discovered new exit (range 15) 1267 | -10/Materials | Core integrity fell below 50% 1275 | -10/Materials | Entered Mines 1299 | -10/Mines | Lost 3 parts (1n1u1w) 1614 | -10/Mines | Assisted by bots powering up and referring to "LRC-V3" 1839 | -10/Mines | Learned location of Zion (-6) 1887 | -10/Mines | Learned location of Recycling (-9) 1893 | -10/Mines | Found a hidden stash of uninstalled traps 2057 | -10/Mines | Learned location of Storage (-9) 2128 | -10/Mines | Assembled infested the area 2133 | -10/Mines | Assisted by a Guerilla fighting off Assembled 2305 | -10/Mines | Lost 3 parts (1p1n1u) 2310 | -10/Mines | Core integrity fell below 20% 4165 | -10/Mines | Discovered new exit (range 16) 4245 | -10/Mines | Entered Materials 4245 | -9/Materials | Evolved 2 slots: Propulsion x2 4919 | -9/Materials | Discovered new exit (range 13) 4975 | -9/Materials | Discovered new exit (range 7) 4975 | -9/Materials | Central database locked down 5001 | -9/Materials | Build established: Scavenger-Mutant 5011 | -9/Materials | Entered Mines 5062 | -9/Mines | Met a Derelict bent on vengeance 5300 | -9/Mines | Deemed a non-threat by the Exiles lab entrance 5300 | -9/Mines | Discovered new exit (range 6) 5312 | -9/Mines | Entered Exiles 5312 | -9/Exiles | Found Exiles lab destroyed 5312 | -9/Exiles | Accompanied by 2 allies 5342 | -9/Exiles | Led the pair of lost Derelicts to a safe place 6547 | -9/Exiles | Discovered new exit (range 14) 6864 | -9/Exiles | Discovered new exit (range 14) 6895 | -9/Exiles | Entered Mines 7024 | -8/Mines | Discovered new exit (range 5) 7199 | -8/Mines | Discovered new exit (range 14) 8392 | -8/Mines | Entered Materials 8392 | -8/Materials | Evolved 2 slots: Utility x2 8660 | -8/Materials | Core integrity fell below 50% 8677 | -8/Materials | Lost 9 parts (1p4n2u2w) 8682 | -8/Materials | Core integrity fell below 20% 8687 | -8/Materials | Destroyed by G-47 Trooper with Particle Gun Last Messages --------------- 08639_ Penetrated by Slug. 08642_ VSS Leg destroyed. 08643_ Critical hit (Burn: +37). 08643_ Slug penetrates Wall. 08646_ Mak. Terrain Scanner destroyed. 08646_ VSS Leg destroyed. 08646_ Knocked back. 08647_ Slug penetrates Nuclear Reactor. 08650_ Penetrated by Slug. 08654_ X-62 Marksman destroyed. 08662_ Critical hit (Burn: +37). 08670_ G-47 Trooper destroyed. 08675_ K-01 Serf collects debris. 08681_ Penetrated by Slug. 08681_ Hpw. Shotgun destroyed. 08681_ Structural Scanner destroyed. 08682_ K-01 Serf collects debris. 08683_ Critical hit (Burn: +37). 08686_ K-01 Serf collects debris. 08687_ Penetrated by Slug. Map ----- +----------------------------------------------------+ | ?????????????????????????????????????? | | ?????????????????????????????????????? | | ?????????????????????????????????????? | | ?????????????????????????????????????? | | ?????????????????????????????????????? | | ?????????????????????????????????????? | | ?????????????????????????????????????? | | ???????????????????????? ????????????? | | ?????????????????????????????#??#????? | | ???????????????????? ???? ???????????? | | ??????????????? # ???????????????????? | | ??????????????? # ??????????????#?#??? | | ??????????????? # ?#############?????? | | ??????????????? + ?###############???? | | ????????#????? # ## ####???? | | ?????????+####### ## ! " ##???? | | ????????? ##### # = ####???? | | ???????? " % "##????? | | ???????? T + % ###????? | | ???????? ##### # ###???#? | | ????????+######## ## ###?#??? | | ?????? ? #### ## ######## | | ????????""" #### ##;+############### | | ????????""" + % *#! ## | | ????????""" #### !g/= """ """ ## | | ???????? ######### #@!%""" """ ## | | ????????""" #?####### %;# """ """ ## | | ????????""" #??????##rH## k ## | | ????????""" #?#???### ##!gx= "T" ## | | ???????? #?##??### ## !%= ## | | ????????######?????## ####+######## | | ????????############# ==**=######## | | ????????# ### = =#######? | | ??????? # ### ##+#+######## | | ??????? # #### ## [ ## | | ????????# ### ## ## | | ????????# #### ## ## | | ????????# #### ## """ """ ## | | ????????# #?## ## """ """ ## | | ????????# #### ## """ """ ## | | ????????#####+######## ############## | | ?????? = [ ####### | | ?????? ! ##????? | | ?????? ##??#?? | | ??????+####+#######################??? | | ?????? # #################???# | | ????????#" #????????#????????#?? | | ????????#" #???#????##?#??#??#?? | | ???????????????????#???????#?????????? | | ?????????????????????????????????????? | +----------------------------------------------------+ Best States ------------- Heat Dissipation 50 Energy Generation 14 Energy Capacity 250 Matter Stores 300 Matter Capacity 300 Sight Range 16 Terrain Scan Range 18 Terrain Scan Density 10 Armor Coverage 150 Weapon Shielding 33 Evasion (%) 55 Targeting Accuracy 5 Recoil Reduction 4 Authchip Count 1 Item Schematics ----------------- None Robot Schematics ------------------ None Fabricated ------------ Nothing Alien Tech Used ----------------- None Achievements -------------- None Challenges ------------ None Game ------ Seed AerolevVariableShielding Manual? 0 Play Time 00:34:34 Cumulative 23.2 hours Start 2024.04.06 @ 00:50:25 End 2024.04.06 @ 01:25:30 Sessions 1 Manual Loads 0 Difficulty Rogue Special Mode None Game No. 54 Rogue 51 Adventurer 3 Explorer 0 Win Type - Total 0 Types 0/0/0/0/0/0/0/0/0 Lore% 25 Gallery% 33 Achievement% 28 Wizard Run 0 Options --------- Layout 1 ASCII 0 Keyboard 0 Movement Mouse Keybinds 0 Fullscreen 1 Font 32/SmallcapsGlow Map View 77x35 Zoom Use 0% Tactical HUD 1 Map Filters NONE Filters NONE Steam 1 RUN: 96ff2bbf-8f85-453f-bccf-8b306320cf40